[Event "1000GM Schev-C January 2024"]
[Site "Sunnyvale"]
[Date "2024.01.21"]
[Round "3.4"]
[White "Maass Garza R, Gustavo"]
[Black "Yang, Maxwell"]
[Result "1/2-1/2"]
[ECO "B50"]
[WhiteElo "2025"]
[BlackElo "1946"]
[Annotator "RC"]
[PlyCount "83"]
[EventDate "2024.01.20"]
[EventType "schev"]
[EventCountry "USA"]
[SourceTitle "playchess.com"]
[Source "ChessBase"]
[SourceQuality "1"]
[TimeControl "5400+30"]

1. e4 {[%emt 0:00:02]} c5 {[%emt 0:01:04]} 2. Nf3 {[%emt 0:00:03]} d6 {[%emt 0:00:04]} 3. c3 {[%emt 0:00:49]} Nf6 {[%emt 0:00:07]} 4. Bd3 {[%emt 0:01:12]} Nc6 {[%emt 0:00:57]} 5. O-O {[%emt 0:00:17]} g6 {[%emt 0:01:31]} 6. h3 {[%emt 1:31:07]} Bg7 {[%emt 0:00:17]} 7. Bc2 {[%emt 0:00:00]} O-O {[%emt 0:00:34]} 8. d4 {[%emt 0:00:00]} cxd4 {[%emt 0:00:12]} 9. Nxd4 {[%emt 0:00:00]} Nxd4 {[%emt 0:01:45]} 10. cxd4 {[%emt 0:00:00]} Qb6 {[%emt 0:00:52]} 11. Nc3 {[%emt 0:00:00]} Be6 {[%emt 0:01:11]} 12. d5 {[%emt 0:00:00]} Bd7 {[%emt 0:01:20]} 13. Rb1 {[%emt 0:00:00]} a6 {[%emt 0:06:14]} 14. Be3 {[%emt 0:00:00]} Qa5 {[%emt 0:02:07]} 15. Re1 {[%emt 0:00:00]} b5 {[%emt 0:02:20]} 16. a3 {[%emt 0:00:00]} Rfc8 {[%emt 0:00:58]} 17. Bd4 {[%emt 0:00:00]} b4 {[%emt 0:01:25]} 18. axb4 {[%emt 0:00:00]} Qxb4 {[%emt 0:00:13]} 19. Na2 {[%emt 0:00:00]} Qc4 {[%emt 0:04:05]} 20. Bb3 {[%emt 0:00:00]} Qb5 {[%emt 0:01:53]} 21. Nc3 {[%emt 0:00:00]} Qb4 {[%emt 0:00:46]} 22. Na2 {[%emt 0:00:00]} Qb7 {[%emt 0:01:14]} 23. Nc3 {[%emt 0:00:00]} Rab8 {[%emt 0:00:37]} 24. Ba4 {[%emt 0:00:00]} Bxa4 {[%emt 0:00:10]} 25. Qxa4 {[%emt 0:00:00]} Qb4 {[%emt 0:00:20]} 26. b3 {[%emt 0:00:00]} Qxa4 {[%emt 0:02:11]} 27. bxa4 {[%emt 0:00:00]} Nd7 {[%emt 0:00:31]} 28. Rxb8 {[%emt 0:00:00]} Nxb8 {[%emt 0:00:33]} 29. Bxg7 {[%emt 0:00:00]} Kxg7 {[%emt 0:00:06]} 30. Re3 {[%emt 0:00:00]} Rc4 {[%emt 0:00:13]} 31. f4 {[%emt 0:00:00]} Nd7 {[%emt 0:01:37]} 32. Kf2 {[%emt 0:00:00]} Nc5 {[%emt 0:00:10]} 33. Kf3 {[%emt 0:00:00]} Nxa4 {[%emt 0:00:15]} 34. Nxa4 {[%emt 0:00:00]} Rxa4 {[%emt 0:00:04]} 35. Rc3 {[%emt 0:00:00]} a5 {[%emt 0:00:16]} 36. Rc7 {[%emt 0:00:00]} Ra3+ {[%emt 0:00:38]} 37. Kf2 {[%emt 0:00:00]} Kf6 {[%emt 0:01:11]} 38. g4 {[%emt 0:00:00]} h6 {[%emt 0:00:46]} 39. Rc6 {[%emt 0:00:00]} Ra2+ {[%emt 0:00:56]} 40. Ke3 {[%emt 0:00:00]} Ra3+ {[%emt 0:00:03]} 41. Kd4 {[%emt 0:00:00]} Ra4+ {[%emt 0:00:05]} 42. Ke3 {[%emt 0:00:00]} 1/2-1/2

[Event "1000GM Schev-C January 2024"]
[Site "Sunnyvale"]
[Date "2024.01.21"]
[Round "3.5"]
[White "Zhuge, Katherine"]
[Black "Palmero Martinez, Rachel"]
[Result "0-1"]
[ECO "C88"]
[WhiteElo "1620"]
[BlackElo "2018"]
[Annotator "RC"]
[PlyCount "80"]
[EventDate "2024.01.20"]
[EventType "schev"]
[EventCountry "USA"]
[SourceTitle "playchess.com"]
[Source "ChessBase"]
[SourceQuality "1"]
[TimeControl "5400+30"]

1. e4 {[%emt 0:00:30]} e5 {[%emt 0:05:32]} 2. Nf3 {[%emt 0:00:15]} Nc6 {[%emt 0:00:04]} 3. Bb5 {[%emt 0:00:11]} a6 {[%emt 0:00:39]} 4. Ba4 {[%emt 0:00:13]} Nf6 {[%emt 0:00:07]} 5. O-O {[%emt 0:00:22]} Be7 {[%emt 0:00:04]} 6. Re1 {[%emt 0:00:09]} b5 {[%emt 0:00:04]} 7. Bb3 {[%emt 0:00:04]} O-O {[%emt 0:00:05]} 8. a4 {[%emt 0:00:04]} b4 {[%emt 0:00:05]} 9. d3 {[%emt 0:00:07]} d6 {[%emt 0:00:10]} 10. Nbd2 {[%emt 0:00:45]} Be6 {[%emt 0:00:19]} 11. Bxe6 {[%emt 0:08:45]} fxe6 {[%emt 0:00:18]} 12. Nc4 {[%emt 0:02:53]} Qe8 {[%emt 0:04:39]} 13. h3 {[%emt 0:11:02]} Nh5 {[%emt 0:02:22]} 14. Be3 {[%emt 0:08:16]} Qg6 {[%emt 0:01:13]} 15. Nh2 {[%emt 0:04:12]} d5 {[%emt 0:01:51]} 16. exd5 {[%emt 0:11:13]} exd5 {[%emt 0:00:10]} 17. Nd2 {[%emt 0:05:57]} d4 {[%emt 0:00:23]} 18. Nc4 {[%emt 0:02:55]} dxe3 {[%emt 0:00:18]} 19. Rxe3 {[%emt 0:02:44]} Bc5 {[%emt 0:02:05]} 20. Re2 {[%emt 0:02:04]} Nf4 {[%emt 0:00:42]} 21. Ng4 {[%emt 0:05:30]} h5 {[%emt 0:02:50]} 22. Ncxe5 {[%emt 0:04:22]} Nxe2+ {[%emt 0:01:28]} 23. Qxe2 {[%emt 0:00:11]} Nxe5 {[%emt 0:00:04]} 24. Qxe5 {[%emt 0:02:18]} hxg4 {[%emt 0:00:10]} 25. Qxc5 {[%emt 0:00:15]} gxh3 {[%emt 0:00:10]} 26. g3 {[%emt 0:00:54]} Qf5 {[%emt 0:00:43]} 27. Qc4+ {[%emt 0:02:08]} Qf7 {[%emt 0:00:05]} 28. Qc5 {[%emt 0:01:42]} Qf3 {[%emt 0:00:10]} 29. Qc4+ {[%emt 0:00:52]} Rf7 {[%emt 0:00:04]} 30. Qe4 {[%emt 0:00:40]} Qxf2+ {[%emt 0:00:10]} 31. Kh1 {[%emt 0:00:20]} Raf8 {[%emt 0:00:04]} 32. a5 {[%emt 0:01:24]} Qxg3 {[%emt 0:00:28]} 33. Rg1 {[%emt 0:01:06]} Qf3+ {[%emt 0:00:09]} 34. Qxf3 {[%emt 0:00:51]} Rxf3 {[%emt 0:00:03]} 35. Kh2 {[%emt 0:00:19]} Re8 {[%emt 0:00:05]} 36. d4 {[%emt 0:00:27]} Re2+ {[%emt 0:00:08]} 37. Kh1 {[%emt 0:00:04]} Rff2 {[%emt 0:00:07]} 38. Rd1 {[%emt 0:00:41]} Rh2+ {[%emt 0:00:15]} 39. Kg1 {[%emt 0:00:04]} Reg2+ {[%emt 0:00:06]} 40. Kf1 {[%emt 0:00:04]} Rh1# {[%emt 0:00:06]} 0-1

[Event "1000GM Schev-C January 2024"]
[Site "Sunnyvale"]
[Date "2024.01.21"]
[Round "4.1"]
[White "Palao, Adriana"]
[Black "Pulijala, Akshaj"]
[Result "1-0"]
[ECO "B50"]
[WhiteElo "1978"]
[BlackElo "1597"]
[Annotator "RC"]
[PlyCount "139"]
[EventDate "2024.01.20"]
[EventType "schev"]
[EventCountry "USA"]
[SourceTitle "playchess.com"]
[Source "ChessBase"]
[SourceQuality "1"]
[TimeControl "5400+30"]

1. e4 {[%emt 0:02:57]} c5 {[%emt 0:00:14]} 2. h3 {[%emt 0:00:08]} Nc6 {[%emt 0:02:35]} 3. Nf3 {[%emt 0:00:07]} d6 {[%emt 0:01:10]} 4. c3 {[%emt 0:00:59]} Nf6 {[%emt 0:01:42]} 5. Bd3 {[%emt 0:00:09]} g6 {[%emt 0:03:19]} 6. Bc2 {[%emt 0:00:12]} Bg7 {[%emt 0:02:12]} 7. O-O {[%emt 0:00:26]} O-O {[%emt 0:01:13]} 8. d4 {[%emt 0:00:26]} cxd4 {[%emt 0:01:52]} 9. cxd4 {[%emt 0:00:16]} e5 {[%emt 0:02:39]} 10. d5 {[%emt 0:04:13]} Ne7 {[%emt 0:00:46]} 11. Nc3 {[%emt 0:01:22]} Ne8 {[%emt 0:03:48]} 12. Nh2 {[%emt 0:01:58]} f5 {[%emt 0:03:03]} 13. exf5 {[%emt 0:06:40]} Nxf5 {[%emt 0:02:36]} 14. Bxf5 {[%emt 0:02:00]} Bxf5 {[%emt 0:03:48]} 15. Be3 {[%emt 0:03:41]} Bf6 {[%emt 0:06:12]} 16. Ng4 {[%emt 0:06:30]} Bg5 {[%emt 0:04:24]} 17. Nh6+ {[%emt 0:10:39]} Kg7 {[%emt 0:02:21]} 18. Nxf5+ {[%emt 0:00:36]} Rxf5 {[%emt 0:02:59]} 19. Qg4 {[%emt 0:07:25]} Bf4 {[%emt 0:11:08]} 20. Qe2 {[%emt 0:06:32]} Nc7 {[%emt 0:06:18]} 21. Rac1 {[%emt 0:05:29]} Qd7 {[%emt 0:04:00]} 22. Qc4 {[%emt 0:07:05]} Rf7 {[%emt 0:08:02]} 23. Ne4 {[%emt 0:05:18]} Bxe3 {[%emt 0:03:41]} 24. fxe3 {[%emt 0:00:09]} Rxf1+ {[%emt 0:06:07]} 25. Rxf1 {[%emt 0:01:43]} b5 {[%emt 0:03:23]} 26. Qd3 {[%emt 0:03:16]} Rf8 {[%emt 0:03:19]} 27. Rc1 {[%emt 0:00:17]} Ne8 {[%emt 0:02:25]} 28. Rc6 {[%emt 0:01:54]} Qf5 {[%emt 0:01:17]} 29. Qc2 {[%emt 0:08:25]} Qf1+ {[%emt 0:02:21]} 30. Kh2 {[%emt 0:00:03]} Nf6 {[%emt 0:00:43]} 31. Rxd6 {[%emt 0:04:44]} Qe1 {[%emt 0:01:02]} 32. Nxf6 {[%emt 0:02:30]} Rxf6 {[%emt 0:00:13]} 33. Rxf6 {[%emt 0:01:20]} Kxf6 {[%emt 0:00:05]} 34. Qd3 {[%emt 0:01:23]} a6 {[%emt 0:01:17]} 35. d6 {[%emt 0:00:15]} Qa5 {[%emt 0:00:20]} 36. d7 {[%emt 0:02:42]} Ke7 {[%emt 0:00:49]} 37. Qd5 {[%emt 0:00:30]} Qc7 {[%emt 0:00:49]} 38. e4 {[%emt 0:00:20]} Qxd7 {[%emt 0:00:45]} 39. Qxe5+ {[%emt 0:00:02]} Kf7 {[%emt 0:00:18]} 40. Qf4+ {[%emt 0:00:49]} Kg7 {[%emt 0:00:24]} 41. Qe5+ {[%emt 0:00:49]} Kf7 {[%emt 0:00:06]} 42. Qd5+ {[%emt 0:02:37]} Qxd5 {[%emt 0:00:07]} 43. exd5 {[%emt 0:00:01]} Kf6 {[%emt 0:00:19]} 44. Kg3 {[%emt 0:00:01]} Ke5 {[%emt 0:00:18]} 45. Kg4 {[%emt 0:00:01]} h6 {[%emt 0:00:31]} 46. h4 {[%emt 0:00:20]} Kxd5 {[%emt 0:01:01]} 47. h5 {[%emt 0:01:15]} gxh5+ {[%emt 0:02:12]} 48. Kxh5 {[%emt 0:00:02]} Kc4 {[%emt 0:01:17]} 49. Kxh6 {[%emt 0:01:11]} Kd3 {[%emt 0:00:06]} 50. g4 {[%emt 0:00:14]} Kc2 {[%emt 0:00:24]} 51. b4 {[%emt 0:00:32]} Kb2 {[%emt 0:00:25]} 52. g5 {[%emt 0:00:02]} Kxa2 {[%emt 0:00:07]} 53. g6 {[%emt 0:00:02]} Kb3 {[%emt 0:00:11]} 54. g7 {[%emt 0:00:04]} Kxb4 {[%emt 0:00:08]} 55. g8=Q {[%emt 0:00:05]} a5 {[%emt 0:00:27]} 56. Qa2 {[%emt 0:00:14]} a4 {[%emt 0:00:08]} 57. Kg5 {[%emt 0:00:13]} Kc3 {[%emt 0:00:14]} 58. Kf4 {[%emt 0:00:06]} b4 {[%emt 0:00:17]} 59. Qxa4 {[%emt 0:03:43]} b3 {[%emt 0:00:06]} 60. Ke3 {[%emt 0:01:13]} b2 {[%emt 0:00:27]} 61. Qd1 {[%emt 0:00:08]} Kb4 {[%emt 0:00:13]} 62. Qb1 {[%emt 0:00:05]} Kc3 {[%emt 0:00:04]} 63. Ke2 {[%emt 0:00:08]} Kb3 {[%emt 0:00:07]} 64. Kd3 {[%emt 0:00:03]} Ka3 {[%emt 0:00:07]} 65. Kc3 {[%emt 0:00:04]} Ka4 {[%emt 0:00:05]} 66. Qxb2 {[%emt 0:00:04]} Ka5 {[%emt 0:00:03]} 67. Kc4 {[%emt 0:00:05]} Ka6 {[%emt 0:00:03]} 68. Kc5 {[%emt 0:00:03]} Ka7 {[%emt 0:00:04]} 69. Kc6 {[%emt 0:00:04]} Ka8 {[%emt 0:00:03]} 70. Qb7# {[%emt 0:00:04]} 1-0

[Event "1000GM Schev-C January 2024"]
[Site "Sunnyvale"]
[Date "2024.01.21"]
[Round "4.2"]
[White "Vasquez Ramirez, Rocio"]
[Black "Qi, Jenny"]
[Result "1/2-1/2"]
[ECO "B30"]
[WhiteElo "1999"]
[BlackElo "1605"]
[Annotator "RC"]
[PlyCount "132"]
[EventDate "2024.01.20"]
[EventType "schev"]
[EventCountry "USA"]
[SourceTitle "playchess.com"]
[Source "ChessBase"]
[SourceQuality "1"]
[TimeControl "5400+30"]

1. e4 {[%emt 0:00:33]} c5 {[%emt 0:00:08]} 2. Nf3 {[%emt 0:00:06]} d6 {[%emt 0:00:07]} 3. c4 {[%emt 0:00:04]} e5 {[%emt 0:00:42]} 4. Nc3 {[%emt 0:00:04]} Nc6 {[%emt 0:00:38]} 5. g3 {[%emt 0:00:26]} g6 {[%emt 0:00:31]} 6. Bg2 {[%emt 0:00:04]} Bg7 {[%emt 0:00:18]} 7. Nd5 {[%emt 0:00:19]} Nge7 {[%emt 0:01:05]} 8. O-O {[%emt 0:00:34]} O-O {[%emt 0:00:26]} 9. d3 {[%emt 0:00:11]} f5 {[%emt 0:04:25]} 10. a3 {[%emt 0:05:12]} fxe4 {[%emt 0:04:45]} 11. dxe4 {[%emt 0:00:03]} Nxd5 {[%emt 0:15:10]} 12. Qxd5+ {[%emt 0:20:25]} Kh8 {[%emt 0:02:16]} 13. Ng5 {[%emt 0:07:43]} Qe7 {[%emt 0:16:34]} 14. Bh3 {[%emt 0:05:51]} Nd4 {[%emt 0:05:58]} 15. Kg2 {[%emt 0:02:24]} Nb3 {[%emt 0:23:54]} 16. Bxc8 {[%emt 0:05:02]} Raxc8 {[%emt 0:12:13]} 17. Be3 {[%emt 0:03:32]} Nxa1 {[%emt 0:01:24]} 18. Rxa1 {[%emt 0:00:13]} Bf6 {[%emt 0:01:09]} 19. h4 {[%emt 0:02:03]} h6 {[%emt 0:02:38]} 20. Nf3 {[%emt 0:04:56]} Bg7 {[%emt 0:01:08]} 21. h5 {[%emt 0:29:49]} g5 {[%emt 0:01:55]} 22. Rd1 {[%emt 0:02:45]} Rc6 {[%emt 0:01:30]} 23. b3 {[%emt 0:00:27]} Qf7 {[%emt 0:00:27]} 24. Qxf7 {[%emt 0:04:48]} Rxf7 {[%emt 0:00:06]} 25. g4 {[%emt 0:00:26]} Rb6 {[%emt 0:00:43]} 26. b4 {[%emt 0:01:57]} Ra6 {[%emt 0:00:40]} 27. bxc5 {[%emt 0:00:09]} dxc5 {[%emt 0:01:10]} 28. Bxc5 {[%emt 0:00:02]} Rc6 {[%emt 0:00:51]} 29. Rd5 {[%emt 0:00:31]} b6 {[%emt 0:00:32]} 30. Bd6 {[%emt 0:00:26]} Rxc4 {[%emt 0:00:39]} 31. Nxe5 {[%emt 0:02:24]} Bxe5 {[%emt 0:00:08]} 32. Bxe5+ {[%emt 0:00:02]} Kh7 {[%emt 0:00:15]} 33. Rd8 {[%emt 0:00:15]} Rg7 {[%emt 0:00:51]} 34. Bxg7 {[%emt 0:01:15]} Kxg7 {[%emt 0:00:07]} 35. Rd7+ {[%emt 0:00:08]} Kg8 {[%emt 0:00:14]} 36. Rxa7 {[%emt 0:01:03]} Rxe4 {[%emt 0:00:18]} 37. f3 {[%emt 0:00:03]} Re3 {[%emt 0:00:31]} 38. Rb7 {[%emt 0:00:50]} Rxa3 {[%emt 0:00:32]} 39. Rxb6 {[%emt 0:00:03]} Kg7 {[%emt 0:00:16]} 40. Rb7+ {[%emt 0:00:47]} Kg8 {[%emt 0:00:11]} 41. Re7 {[%emt 0:00:20]} Ra6 {[%emt 0:00:59]} 42. Kf2 {[%emt 0:00:15]} Rf6 {[%emt 0:00:24]} 43. Ke3 {[%emt 0:00:17]} Kf8 {[%emt 0:00:20]} 44. Re5 {[%emt 0:00:17]} Kg7 {[%emt 0:00:41]} 45. Re8 {[%emt 0:00:54]} Kf7 {[%emt 0:00:26]} 46. Re4 {[%emt 0:00:06]} Kg7 {[%emt 0:00:17]} 47. Re5 {[%emt 0:00:14]} Ra6 {[%emt 0:01:09]} 48. Rd5 {[%emt 0:01:13]} Rf6 {[%emt 0:00:35]} 49. Rd7+ {[%emt 0:01:07]} Kg8 {[%emt 0:00:06]} 50. Re7 {[%emt 0:00:11]} Ra6 {[%emt 0:00:18]} 51. Ke4 {[%emt 0:00:55]} Rf6 {[%emt 0:00:23]} 52. Re5 {[%emt 0:00:53]} Rf4+ {[%emt 0:00:19]} 53. Ke3 {[%emt 0:00:04]} Rf6 {[%emt 0:00:11]} 54. Rf5 {[%emt 0:00:12]} Ra6 {[%emt 0:00:16]} 55. Re5 {[%emt 0:01:12]} Rf6 {[%emt 0:00:21]} 56. Re4 {[%emt 0:00:15]} Kg7 {[%emt 0:01:10]} 57. Re7+ {[%emt 0:01:15]} Kg8 {[%emt 0:00:09]} 58. Re5 {[%emt 0:00:17]} Kg7 {[%emt 0:00:53]} 59. Re4 {[%emt 0:00:10]} Ra6 {[%emt 0:00:37]} 60. f4 {[%emt 0:01:07]} Ra3+ {[%emt 0:00:58]} 61. Kd4 {[%emt 0:00:23]} gxf4 {[%emt 0:01:40]} 62. Rxf4 {[%emt 0:00:07]} Ra4+ {[%emt 0:00:16]} 63. Ke3 {[%emt 0:00:09]} Ra3+ {[%emt 0:00:16]} 64. Kf2 {[%emt 0:00:09]} Ra2+ {[%emt 0:00:33]} 65. Kg3 {[%emt 0:00:07]} Ra3+ {[%emt 0:00:14]} 66. Kh4 {[%emt 0:00:06]} Ra5 {[%emt 0:00:17]} 1/2-1/2

[Event "1000GM Schev-C January 2024"]
[Site "Sunnyvale"]
[Date "2024.01.21"]
[Round "4.3"]
[White "Yuan, Serena"]
[Black "Maass Garza R, Gustavo"]
[Result "1/2-1/2"]
[ECO "E07"]
[WhiteElo "1771"]
[BlackElo "2025"]
[Annotator "RC"]
[PlyCount "148"]
[EventDate "2024.01.20"]
[EventType "schev"]
[EventCountry "USA"]
[SourceTitle "playchess.com"]
[Source "ChessBase"]
[SourceQuality "1"]
[TimeControl "5400+30"]

1. d4 {[%emt 0:01:35]} Nf6 {[%emt 0:01:33]} 2. c4 {[%emt 0:00:24]} e6 {[%emt 0:00:39]} 3. Nf3 {[%emt 0:00:15]} Be7 {[%emt 0:01:40]} 4. g3 {[%emt 0:00:22]} O-O {[%emt 0:00:09]} 5. Bg2 {[%emt 0:00:11]} d5 {[%emt 0:01:35]} 6. O-O {[%emt 0:00:19]} Nbd7 {[%emt 0:00:37]} 7. Nbd2 {[%emt 0:00:34]} c5 {[%emt 0:01:46]} 8. cxd5 {[%emt 1:30:50]} exd5 {[%emt 0:00:18]} 9. dxc5 {[%emt 0:00:00]} Nxc5 {[%emt 0:00:43]} 10. Nb3 {[%emt 0:00:00]} Bf5 {[%emt 0:04:17]} 11. Be3 {[%emt 0:00:00]} Ne6 {[%emt 0:04:15]} 12. Nh4 {[%emt 0:00:00]} Be4 {[%emt 0:03:22]} 13. f3 {[%emt 0:00:00]} Bg6 {[%emt 0:00:03]} 14. Nxg6 {[%emt 0:00:00]} hxg6 {[%emt 0:00:04]} 15. Qd2 {[%emt 0:00:00]} Qd7 {[%emt 0:04:22]} 16. Rfd1 {[%emt 0:00:00]} Rfd8 {[%emt 0:02:00]} 17. Nd4 {[%emt 0:00:00]} Rac8 {[%emt 0:04:20]} 18. Nxe6 {[%emt 0:00:00]} Qxe6 {[%emt 0:01:03]} 19. Rac1 {[%emt 0:00:00]} b6 {[%emt 0:02:22]} 20. Bd4 {[%emt 0:00:00]} Ne8 {[%emt 0:04:11]} 21. Qe3 {[%emt 0:00:00]} Bc5 {[%emt 0:03:47]} 22. Bxc5 {[%emt 0:00:00]} bxc5 {[%emt 0:01:04]} 23. Qxe6 {[%emt 0:00:00]} fxe6 {[%emt 0:00:03]} 24. Rd3 {[%emt 0:00:00]} Nd6 {[%emt 0:02:25]} 25. b3 {[%emt 0:00:00]} Rc7 {[%emt 0:05:23]} 26. Kf2 {[%emt 0:00:00]} a5 {[%emt 0:01:46]} 27. f4 {[%emt 0:00:00]} Kf7 {[%emt 0:02:31]} 28. e3 {[%emt 0:00:00]} Ke7 {[%emt 0:04:02]} 29. Ke2 {[%emt 0:00:00]} a4 {[%emt 0:02:30]} 30. Rdc3 {[%emt 0:00:00]} axb3 {[%emt 0:01:42]} 31. axb3 {[%emt 0:00:00]} Rdc8 {[%emt 0:00:30]} 32. Ra1 {[%emt 0:00:00]} Rb8 {[%emt 0:02:26]} 33. Rac1 {[%emt 0:03:13]} Rb5 {[%emt 0:01:30]} 34. Ra1 {[%emt 0:01:36]} c4 {[%emt 0:02:41]} 35. Rac1 {[%emt 0:03:07]} Ra7 {[%emt 0:02:16]} 36. bxc4 {[%emt 0:01:29]} Rb2+ {[%emt 0:01:44]} 37. R3c2 {[%emt 0:02:44]} Raa2 {[%emt 0:00:13]} 38. Rxb2 {[%emt 0:01:05]} Rxb2+ {[%emt 0:00:03]} 39. Kf1 {[%emt 0:00:15]} Nxc4 {[%emt 0:02:21]} 40. Re1 {[%emt 0:00:27]} Kd6 {[%emt 0:02:31]} 41. Re2 {[%emt 0:00:40]} Rb3 {[%emt 0:02:34]} 42. Kf2 {[%emt 0:00:18]} e5 {[%emt 0:00:29]} 43. fxe5+ {[%emt 0:00:53]} Nxe5 {[%emt 0:00:48]} 44. h3 {[%emt 0:01:09]} Nd3+ {[%emt 0:01:49]} 45. Kf3 {[%emt 0:00:58]} Ke5 {[%emt 0:00:18]} 46. g4 {[%emt 0:00:17]} Nf4 {[%emt 0:06:04]} 47. Re1 {[%emt 0:00:37]} d4 {[%emt 0:01:35]} 48. Bf1 {[%emt 0:00:37]} Nd5 {[%emt 0:00:44]} 49. Bc4 {[%emt 0:00:30]} Rxe3+ {[%emt 0:00:33]} 50. Rxe3+ {[%emt 0:00:12]} Nxe3 {[%emt 0:00:17]} 51. Bd3 {[%emt 0:00:05]} g5 {[%emt 0:00:22]} 52. Be4 {[%emt 0:00:27]} Nd5 {[%emt 0:00:18]} 53. Bd3 {[%emt 0:00:29]} Nf4 {[%emt 0:00:21]} 54. Bf1 {[%emt 0:00:12]} g6 {[%emt 0:00:21]} 55. Bc4 {[%emt 0:01:18]} Nxh3 {[%emt 0:00:48]} 56. Bd3 {[%emt 0:00:08]} Nf4 {[%emt 0:00:14]} 57. Be4 {[%emt 0:00:17]} Kd6 {[%emt 0:01:47]} 58. Bc2 {[%emt 0:01:14]} Kd5 {[%emt 0:01:37]} 59. Bb3+ {[%emt 0:00:24]} Ke5 {[%emt 0:00:24]} 60. Bc4 {[%emt 0:00:33]} d3 {[%emt 0:03:23]} 61. Ke3 {[%emt 0:00:36]} d2 {[%emt 0:01:03]} 62. Bb3 {[%emt 0:00:33]} Ng2+ {[%emt 0:08:31]} 63. Kf2 {[%emt 0:00:11]} Nh4 {[%emt 0:01:23]} 64. Ke3 {[%emt 0:00:14]} Ng2+ {[%emt 0:00:46]} 65. Kf2 {[%emt 0:00:01]} Nf4 {[%emt 0:01:02]} 66. Ke3 {[%emt 0:00:09]} Nd5+ {[%emt 0:00:52]} 67. Kxd2 {[%emt 0:00:42]} Nf6 {[%emt 0:00:36]} 68. Ke3 {[%emt 0:00:49]} Nxg4+ {[%emt 0:00:29]} 69. Kf3 {[%emt 0:00:16]} Nf6 {[%emt 0:01:19]} 70. Bc2 {[%emt 0:00:29]} g4+ {[%emt 0:00:42]} 71. Kg3 {[%emt 0:00:03]} g5 {[%emt 0:00:30]} 72. Bd1 {[%emt 0:00:16]} Ne4+ {[%emt 0:00:34]} 73. Kxg4 {[%emt 0:00:19]} Nf2+ {[%emt 0:00:33]} 74. Kxg5 {[%emt 0:00:04]} Kd6 {[%emt 0:00:20]} 1/2-1/2

[Event "1000GM Schev-C January 2024"]
[Site "Sunnyvale"]
[Date "2024.01.21"]
[Round "4.4"]
[White "Yang, Maxwell"]
[Black "Palmero Martinez, Rachel"]
[Result "0-1"]
[ECO "E71"]
[WhiteElo "1946"]
[BlackElo "2018"]
[Annotator "RC"]
[PlyCount "80"]
[EventDate "2024.01.20"]
[EventType "schev"]
[EventCountry "USA"]
[SourceTitle "playchess.com"]
[Source "ChessBase"]
[SourceQuality "1"]
[TimeControl "5400+30"]

1. d4 {[%emt 0:00:02]} Nf6 {[%emt 0:01:59]} 2. c4 {[%emt 0:00:06]} g6 {[%emt 0:00:04]} 3. Nc3 {[%emt 0:00:04]} Bg7 {[%emt 0:00:06]} 4. e4 {[%emt 0:00:05]} d6 {[%emt 0:00:04]} 5. h3 {[%emt 0:00:04]} O-O {[%emt 0:00:09]} 6. Be3 {[%emt 0:00:07]} e5 {[%emt 0:00:10]} 7. d5 {[%emt 0:00:06]} Nh5 {[%emt 0:00:54]} 8. g4 {[%emt 0:01:09]} Nf4 {[%emt 0:00:08]} 9. Nge2 {[%emt 0:03:12]} Bh6 {[%emt 0:01:35]} 10. Nxf4 {[%emt 0:01:15]} Bxf4 {[%emt 0:00:32]} 11. Bxf4 {[%emt 0:00:08]} exf4 {[%emt 0:00:04]} 12. Qd2 {[%emt 0:00:10]} Qf6 {[%emt 0:00:39]} 13. O-O-O {[%emt 0:00:44]} a5 {[%emt 0:03:33]} 14. Nb5 {[%emt 0:01:39]} Na6 {[%emt 0:00:12]} 15. Qxa5 {[%emt 0:00:19]} Bd7 {[%emt 0:06:52]} 16. f3 {[%emt 0:05:32]} Bxb5 {[%emt 0:04:34]} 17. Qxb5 {[%emt 0:00:33]} Nc5 {[%emt 0:00:04]} 18. a3 {[%emt 0:46:53]} Ra6 {[%emt 0:03:09]} 19. Qb4 {[%emt 0:00:32]} Rb6 {[%emt 0:00:10]} 20. Qc3 {[%emt 0:00:28]} Qxc3+ {[%emt 0:00:06]} 21. bxc3 {[%emt 0:00:02]} Ra8 {[%emt 0:00:08]} 22. Bd3 {[%emt 0:05:41]} Rxa3 {[%emt 0:05:50]} 23. Kd2 {[%emt 0:00:13]} Rb2+ {[%emt 0:00:44]} 24. Bc2 {[%emt 0:00:19]} Raa2 {[%emt 0:00:46]} 25. Rc1 {[%emt 0:00:30]} Nb3+ {[%emt 0:00:06]} 26. Kd3 {[%emt 0:00:05]} Nxc1+ {[%emt 0:01:30]} 27. Rxc1 {[%emt 0:00:06]} Kg7 {[%emt 0:01:22]} 28. Kd2 {[%emt 0:00:13]} Kf6 {[%emt 0:00:06]} 29. h4 {[%emt 0:00:20]} h6 {[%emt 0:00:55]} 30. Kd3 {[%emt 0:01:25]} b6 {[%emt 0:02:44]} 31. Kd2 {[%emt 0:00:15]} Kg7 {[%emt 0:00:16]} 32. Kd3 {[%emt 0:01:27]} f6 {[%emt 0:00:08]} 33. Kd2 {[%emt 0:00:27]} h5 {[%emt 0:01:11]} 34. gxh5 {[%emt 0:00:08]} g5 {[%emt 0:00:02]} 35. hxg5 {[%emt 0:01:36]} fxg5 {[%emt 0:00:06]} 36. Kd3 {[%emt 0:00:34]} Kh6 {[%emt 0:00:17]} 37. Kd2 {[%emt 0:00:12]} Kxh5 {[%emt 0:01:40]} 38. e5 {[%emt 0:00:17]} Rxc2+ {[%emt 0:00:41]} 39. Rxc2 {[%emt 0:00:11]} Rxc2+ {[%emt 0:00:03]} 40. Kxc2 {[%emt 0:00:08]} dxe5 {[%emt 0:00:02]} 0-1

[Event "1000GM Schev-C January 2024"]
[Site "Sunnyvale"]
[Date "2024.01.21"]
[Round "4.5"]
[White "Winslow, Elliott"]
[Black "Zhuge, Katherine"]
[Result "1-0"]
[ECO "D55"]
[WhiteElo "1994"]
[BlackElo "1620"]
[Annotator "RC"]
[PlyCount "71"]
[EventDate "2024.01.20"]
[EventType "schev"]
[EventCountry "USA"]
[SourceTitle "playchess.com"]
[Source "ChessBase"]
[SourceQuality "1"]
[TimeControl "5400+30"]

1. d4 {[%emt 0:04:05]} d5 {[%emt 0:00:06]} 2. c4 {[%emt 0:00:17]} e6 {[%emt 0:00:06]} 3. Nf3 {[%emt 0:00:52]} Be7 {[%emt 0:00:25]} 4. Nc3 {[%emt 0:00:19]} Nf6 {[%emt 0:00:12]} 5. Bg5 {[%emt 0:00:24]} h6 {[%emt 0:00:23]} 6. Bxf6 {[%emt 0:00:16]} Bxf6 {[%emt 0:01:15]} 7. e3 {[%emt 0:00:28]} O-O {[%emt 0:01:39]} 8. Rc1 {[%emt 0:00:41]} b6 {[%emt 0:04:02]} 9. Qb3 {[%emt 0:07:14]} dxc4 {[%emt 0:01:37]} 10. Bxc4 {[%emt 0:00:23]} Bb7 {[%emt 0:01:53]} 11. Be2 {[%emt 0:00:15]} Nd7 {[%emt 0:04:18]} 12. O-O {[%emt 0:00:32]} c5 {[%emt 0:03:26]} 13. Rfd1 {[%emt 0:02:24]} Qe7 {[%emt 0:03:33]} 14. d5 {[%emt 0:05:53]} exd5 {[%emt 0:02:43]} 15. Nxd5 {[%emt 0:00:14]} Bxd5 {[%emt 0:01:22]} 16. Rxd5 {[%emt 0:02:23]} Rad8 {[%emt 0:02:34]} 17. Rcd1 {[%emt 0:02:31]} Ne5 {[%emt 0:02:06]} 18. Nxe5 {[%emt 0:01:59]} Bxe5 {[%emt 0:00:37]} 19. Bc4 {[%emt 0:01:52]} Rxd5 {[%emt 0:10:29]} 20. Rxd5 {[%emt 0:00:51]} Rd8 {[%emt 0:06:58]} 21. Rxd8+ {[%emt 0:01:06]} Qxd8 {[%emt 0:00:09]} 22. f4 {[%emt 0:00:17]} Bf6 {[%emt 0:01:15]} 23. Bxf7+ {[%emt 0:07:24]} Kh8 {[%emt 0:00:16]} 24. Kf2 {[%emt 0:01:45]} Qd2+ {[%emt 0:06:59]} 25. Kf3 {[%emt 0:00:51]} Bxb2 {[%emt 0:02:44]} 26. Qb5 {[%emt 0:02:38]} Qd1+ {[%emt 0:06:26]} 27. Kg3 {[%emt 0:00:44]} Qe1+ {[%emt 0:02:01]} 28. Kg4 {[%emt 0:10:33]} Qd1+ {[%emt 0:05:52]} 29. Kf5 {[%emt 0:02:14]} g6+ {[%emt 0:04:35]} 30. Ke6 {[%emt 0:01:21]} Qg4+ {[%emt 0:06:14]} 31. Kd6 {[%emt 0:01:15]} Ba3 {[%emt 0:04:15]} 32. Qe8+ {[%emt 0:03:49]} Kg7 {[%emt 0:00:09]} 33. Be6 {[%emt 0:01:00]} Qd1+ {[%emt 0:06:34]} 34. Kc7 {[%emt 0:00:13]} c4 {[%emt 0:03:11]} 35. Qf7+ {[%emt 0:00:35]} Kh8 {[%emt 0:00:06]} 36. Qg8# {[%emt 0:38:52]} 1-0